Cogmind - Beta 13 @@@ ROGUE MODE // 2024.06.29 @ 23:29:16 Player: tirrike Result: Self-destructed Performance ------------- Evolutions (2) 1000 Regions Visited (5) 1000 Robots Destroyed (51) 255 Value Destroyed (813) 813 Prototype IDs (1) 20 Alien Tech Used (0) 0 Bonus (33) 33 TOTAL SCORE: 3121 Bonus ------- Follower Combat Kills 33 Cogmind --------- Core Integrity 510/550 Matter 300/300 Energy 125/125 System Corruption 1% Temperature Cool (0) Movement Treading (232) Ox1 Location -8/Materials Parts ------- > --- POWER (1) -------- Light Ion Engine > --- PROPULSION (3) --- Light Treads Advanced Treads > --- UTILITY (5) ------ High-capacity Storage Unit Structural Scanner Improved Sensor Array Improved Signal Interpreter Seismic Detector > --- WEAPON (2) ------- Improved Assault Rifle Katana > --- INVENTORY (20) --- Light Nuclear Core Light Treads Light Treads Light Treads Small Storage Unit Sensor Array Faulty Experimental Sensor Array Improved Propulsion Shielding Light Armor Plating Light Armor Plating Improved Light Armor Plating Hacking Suite Improved Assault Rifle Improved Assault Rifle Grenade Launcher Mini Grenade Launcher Mini Grenade Launcher Mini Grenade Launcher Improved Datajack Axe Peak State ------------ > --- POWER ------------ Light Nuclear Core > --- PROPULSION ------- Light Treads Light Treads Advanced Treads > --- UTILITY ---------- High-capacity Storage Unit Structural Scanner Sensor Array Improved Signal Interpreter Seismic Detector > --- WEAPON ----------- Improved Assault Rifle Improved Assault Rifle > --- INVENTORY -------- Light Ion Engine Light Nuclear Core Light Treads Light Treads Light Treads Small Storage Unit Experimental Sensor Array Improved Propulsion Shielding Light Armor Plating Hacking Suite Improved Assault Rifle Grenade Launcher Mini Grenade Launcher Mini Grenade Launcher Mini Grenade Launcher Improved Datajack Katana [Rating: 25] Favorites ----------- Power Light Ion Engine Engine Light Ion Engine Power Core Light Nuclear Core Propulsion Light Treads Treads Light Treads Utility Seismic Detector Device Seismic Detector Storage Large Storage Unit Processor Improved Signal Interpreter Protection Light Armor Plating Weapon Assault Rifle Energy Gun Small Laser Ballistic Gun Assault Rifle Launcher Grenade Launcher Slashing Weapon Katana Build | -11 -10 -10 -10 -9 -8 ------- Run | Yrd Mat Min Exi Min Mat Slots Evolved 4 | . . . . . 4 Power . | . . . . . . Propulsion 1 | . . . . . 1 Utility 3 | . . . . . 3 Weapon . | . . . . . . Parts Attached 38 | 6 5 9 . 2 16 Power 4 | 1 . 1 . . 2 Engine 3 | 1 . 1 . . 1 Core 1 | . . . . . 1 Reactor . | . . . . . . Propulsion 8 | 2 1 2 . 1 2 Treads 8 | 2 1 2 . 1 2 Leg . | . . . . . . Wheel . | . . . . . . Hover . | . . . . . . Flight . | . . . . . . Utility 12 | 1 2 3 . . 6 Device 6 | . 1 2 . . 3 Storage 3 | 1 1 . . . 1 Processor 2 | . . . . . 2 Hackware . | . . . . . . Protection 1 | . . 1 . . . Artifact . | . . . . . . Weapon 14 | 2 2 3 . 1 6 Energy Gun 1 | 1 . . . . . Energy Cannon . | . . . . . . Ballistic Gun 7 | 1 2 . . 1 3 Ballistic Cannon . | . . . . . . Launcher 3 | . . 3 . . . Special Weapon . | . . . . . . Impact Weapon . | . . . . . . Slashing Weapon 3 | . . . . . 3 Piercing Weapon . | . . . . . . Special Melee Weapon . | . . . . . . Unidentified Prototypes 1 | . . . . . 1 Parts Lost 4 | . . 2 . 1 1 Power 1 | . . 1 . . . Propulsion 2 | . . . . 1 1 Utility 1 | . . 1 . . . Weapon . | . . . . . . Highest Loss Streak 2 | . . 2 . 1 1 To Critical Strikes . | . . . . . . Average Slot Usage (%) 96 | . 99 89 100 99 99 Engine 12 | . 14 13 14 14 5 Treads 27 | . 28 28 28 27 26 Device 13 | . 13 2 14 14 27 Storage 13 | . 14 14 14 14 9 Processor 1 | . . . . . 9 Ballistic Gun 20 | . 25 17 14 25 14 Launcher 4 | . . 10 14 2 . Naked Turns . | . . . . . . Heaviest Build 54 | 13 29 31 29 29 54 Greatest Support 62 | 40 40 40 40 40 62 Greatest Overweight (x) 4 | 4 . . . 1 1 Average Overweight (x) . | . . . . . . Largest Inventory Capacity 20 | 8 15 15 15 15 20 Average Capacity 14 | 7 11 15 15 15 19 Most Carried 20 | 2 13 15 15 15 20 Average Carried 12 | . 5 14 15 14 16 Final Capacity 20 | 8 15 15 15 15 20 Final Carried 20 | 2 13 15 15 14 20 Class Distribution -------------------- 82% | Mutant 11% | Scavenger-Skirmisher 6% | Scavenger-Assassin Dominant Class ---------------- Mutant | -10/Materials Mutant | -10/Mines Mutant | -10/Exiles Mutant | -9/Mines Scavenger-Skirmisher | -8/Materials Resources | -11 -10 -10 -10 -9 -8 ----------- Run | Yrd Mat Min Exi Min Mat Matter Collected 1223 | 284 332 193 . 55 359 Remotely . | . . . . . . Salvage Created 1456 | 95 518 167 . 142 534 Parts 123 | 8 44 18 . 12 41 Haulers Intercepted 5 | . 2 . . . 3 Recyclers Shooed . | . . . . . . Parts Field Recycled . | . . . . . . Retrieved Matter . | . . . . . . Parts Self-Destructed . | . . . . . . Prevented . | . . . . . . Kills | -11 -10 -10 -10 -9 -8 ------- Run | Yrd Mat Min Exi Min Mat Combat Hostiles Destroyed 31 | . 14 2 . 5 10 Guns 31 | . 14 2 . 5 10 Classes Destroyed 12 | 2 6 1 . 1 2 Worker 2 | . 1 . . . 1 Builder 1 | . . 1 . . . Tunneler 6 | 2 1 3 . . . Hauler 5 | . 2 . . . 3 Recycler 2 | 1 . . . . 1 Operator 1 | . 1 . . . . Watcher 3 | . 2 . . . 1 Swarmer 19 | . 9 . . 3 7 Grunt 9 | . 5 2 . 1 1 Duelist 1 | . . . . 1 . Sentry 1 | . . . . . 1 Hunter 1 | . . . . . 1 Best Kill Streak 6 | 2 3 1 . 3 6 Combat Bots Only 4 | . 3 1 . 3 4 Max Kills in Single Turn 1 | 1 1 1 . 1 1 Gunslinging . | . . . . . . Exploded . | . . . . . . Melee . | . . . . . . Uniques/NPCs Destroyed . | . . . . . . Combat | -11 -10 -10 -10 -9 -8 -------- Run | Yrd Mat Min Exi Min Mat Hostile Shots Fired 149 | . 54 18 . 13 64 Missed 33 | . 14 1 . 1 17 Damage Taken 1214 | . 336 242 . 176 460 Core 111 | . 27 44 . . 40 Absorbed by Shields . | . . . . . . Core Remaining (%) 85 | 100 . . . 71 . Volleys Fired 166 | 8 73 30 . 10 45 Largest 2 | 2 2 2 . 2 2 Hottest 60 | 60 60 40 . 40 46 Shots Fired 303 | 16 146 53 . 20 68 Gun 303 | 16 146 53 . 20 68 Cannon . | . . . . . . Launcher . | . . . . . . Special . | . . . . . . Kinetic 285 | 8 136 53 . 20 68 Thermal 18 | 8 10 . . . . Explosive . | . . . . . . Electromagnetic . | . . . . . . Robot Hit Streak 11 | 3 7 10 . 4 11 Robot Miss Streak 8 | 2 8 2 . 1 3 Penetration Max . | . . . . . . Secondary Targets 3 | . . . . 1 2 Max Gunslinging Chain 1 | . . . . 1 1 Shots Hit Robots 174 | 9 70 40 . 12 43 Core Hits 83 | 4 32 13 . 9 25 Critical Kills 1 | . . . . . 1 Critical Parts Destroyed . | . . . . . . Critical Strikes 1 | . . . . . 1 Destroy 1 | . . . . . 1 Melee Attacks 4 | . . . . . 4 Impact . | . . . . . . Slashing 4 | . . . . . 4 Piercing . | . . . . . . Sneak Attacks . | . . . . . . Combat Hostiles . | . . . . . . Follow-up Attacks . | . . . . . . Damage Inflicted 2067 | 124 772 435 . 122 614 Guns 2062 | 124 772 435 . 122 609 Cannons . | . . . . . . Explosions . | . . . . . . Melee . | . . . . . . Ramming 5 | . . . . . 5 Kinetic 1985 | 80 739 435 . 122 609 Thermal 77 | 44 33 . . . . Explosive . | . . . . . . Electromagnetic . | . . . . . . Impact . | . . . . . . Slashing . | . . . . . . Piercing . | . . . . . . Highest Corruption 1 | . . . . . 1 Average Corruption 1 | . . . . . 1 Corruption Purged . | . . . . . . Corruption Blocked . | . . . . . . Effects 3 | . . . . . 3 Heat Flow Errors 2 | . . . . . 2 Energy Discharges 1 | . . . . . 1 Overload Shots . | . . . . . . Overflow Damage . | . . . . . . Projectiles . | . . . . . . Explosions . | . . . . . . Melee . | . . . . . . Knockbacks . | . . . . . . Impact . | . . . . . . Kinetic . | . . . . . . Secondary . | . . . . . . Self-Inflicted Damage . | . . . . . . Shots . | . . . . . . Rammed 1 | . . . . . 1 Targets Rammed 1 | . . . . . 1 Kicked . | . . . . . . Crushed . | . . . . . . Highest Temperature 219 | . 12 18 . 6 219 Average Temperature 38 | . 7 9 . 6 99 Received Heat Transfer 285 | . 42 162 . 18 63 Siege Activations . | . . . . . . Robots Corrupted . | . . . . . . Combat Hostiles . | . . . . . . Parts Fried . | . . . . . . Impact Corruptions . | . . . . . . Robots Melted . | . . . . . . Combat Hostiles . | . . . . . . Parts Melted . | . . . . . . Heat Transferred 175 | 100 75 . . . . Parts Sabotaged . | . . . . . . Parts Stolen . | . . . . . . Parts Stripped . | . . . . . . Power Chain Reactions . | . . . . . . Alert | -11 -10 -10 -10 -9 -8 ------- Run | Yrd Mat Min Exi Min Mat Peak Influence 224 | 15 224 80 . 70 182 Initial 30 | . 9 30 . . . Average 40 | 4 65 17 . 19 69 Maximum Alert Level 1 | . 1 . . . . Low Security (%) 99 | 100 97 100 . 100 100 Level 1 . | . 2 . . . . Level 2 . | . . . . . . Level 3 . | . . . . . . Level 4 . | . . . . . . Level 5 . | . . . . . . High Security . | . . . . . . Max Security . | . . . . . . Squads Dispatched 2 | . 2 . . . . Investigation 2 | . 2 . . . . Extermination . | . . . . . . Reinforcement . | . . . . . . Assault . | . . . . . . Garrison . | . . . . . . Intercept . | . . . . . . Searches Triggered . | . . . . . . Construction Impeded . | . . . . . . Haulers Reinforced . | . . . . . . Active Scanning Responses . | . . . . . . Cargo Convoy Interrupts . | . . . . . . Stealth | -11 -10 -10 -10 -9 -8 --------- Run | Yrd Mat Min Exi Min Mat Distress Signals 2 | . 2 . . . . Communications Jammed . | . . . . . . Distress Signals . | . . . . . . Times Spotted 47 | . 24 2 . 5 16 Peak Tracking Total 5 | . 5 2 . 2 4 Tactical Retreats 2 | . 2 . . . . Traps | -11 -10 -10 -10 -9 -8 ------- Run | Yrd Mat Min Exi Min Mat Traps Triggered 3 | . 2 . . . 1 Indirectly . | . . . . . . Trap Hack Attempts . | . . . . . . Triggered . | . . . . . . Disarmed . | . . . . . . Reprogrammed . | . . . . . . Reused . | . . . . . . Traps Extracted . | . . . . . . Installed . | . . . . . . Triggered . | . . . . . . Machines | -11 -10 -10 -10 -9 -8 ---------- Run | Yrd Mat Min Exi Min Mat Machines Disabled . | . . . . . . Max in Single Turn . | . . . . . . Machines Repaired . | . . . . . . Machines Dismantled . | . . . . . . Machines Sabotaged . | . . . . . . Overloaded Fab Kills . | . . . . . . Hacking | -11 -10 -10 -10 -9 -8 --------- Run | Yrd Mat Min Exi Min Mat Machines Accessed 13 | . 8 1 1 . 3 Terminals 10 | . 7 . . . 3 Fabricators . | . . . . . . Repair Stations . | . . . . . . Recycling Units 1 | . 1 . . . . Scanalyzers . | . . . . . . Garrison Access . | . . . . . . Total Hacks 29 | . 18 1 3 . 7 Successful 15 | . 9 1 3 . 2 Failed 13 | . 8 . . . 5 Catastrophic 1 | . 1 . . . . Database Lockouts 1 | . 1 . . . . Manual 23 | . 16 . . . 7 Terminals 23 | . 16 . . . 7 Fabricators . | . . . . . . Repair Stations . | . . . . . . Recycling Units 2 | . 2 . . . . Scanalyzers . | . . . . . . Garrison Access . | . . . . . . Terminal Hacks 9 | . 5 1 3 . . Record 3 | . . . 3 . . Robot Analysis 1 | . 1 . . . . Open Door 1 | . . 1 . . . Alert Level 1 | . 1 . . . . Locate Traps 1 | . 1 . . . . Recall Investigation 1 | . 1 . . . . Hauler Manifests 1 | . 1 . . . . Fabricator Hacks . | . . . . . . Repair Station Hacks . | . . . . . . Recycling Unit Hacks 1 | . 1 . . . . Retrieve Components 1 | . 1 . . . . Scanalyzer . | . . . . . . Garrison Access Hacks . | . . . . . . Unauthorized Hacks 5 | . 3 . . . 2 Terminals 4 | . 2 . . . 2 Botnet 3 | . 2 . . . 1 Operators 1 | . . . . . 1 Fabricators . | . . . . . . Repair Stations . | . . . . . . Recycling Units 1 | . 1 . . . . Reject 1 | . 1 . . . . Scanalyzers . | . . . . . . Garrison Access . | . . . . . . Data Cores Recovered 1 | . 1 . . . . Used 1 | . 1 . . . . Hacking Detections 10 | . 7 . . . 3 Full Trace Events 1 | . . . . . 1 Feedback Events . | . . . . . . Feedback Blocked . | . . . . . . Robot Schematics Acquired . | . . . . . . Robots Built . | . . . . . . Authchips . | . . . . . . Time . | . . . . . . Total Robot Build Rating . | . . . . . . Part Schematics Acquired . | . . . . . . Parts Built . | . . . . . . Authchips . | . . . . . . Time . | . . . . . . Total Part Build Rating . | . . . . . . Parts Repaired . | . . . . . . Time . | . . . . . . Parts Recycled . | . . . . . . Recycled Matter . | . . . . . . Retrieved Matter . | . . . . . . Retrieved Components 6 | . 6 . . . . Parts Scanalyzed . | . . . . . . Part Schematics Acquired . | . . . . . . Parts Damaged . | . . . . . . Bothacking | -11 -10 -10 -10 -9 -8 ------------ Run | Yrd Mat Min Exi Min Mat Used RIF Installer . | . . . . . . Robots Hacked . | . . . . . . Non-combat . | . . . . . . Combat . | . . . . . . Robot Hacks Applied . | . . . . . . Relay Couplers Released . | . . . . . . Fabnet Peak Effective % . | . . . . . . Robots Rewired . | . . . . . . Allies Hacked . | . . . . . . Hacks Repelled . | . . . . . . Allies | -11 -10 -10 -10 -9 -8 -------- Run | Yrd Mat Min Exi Min Mat Total Allies 2 | . . . . 2 . Largest Group 2 | . . . . 2 2 Highest-Rated Group 45 | . . . . 45 45 Highest-Rated Ally 31 | . . . . 31 31 Total Orders . | . . . . . . Ally Attacks 15 | . . . . . 15 Total Damage 230 | . . . . . 230 Kills 1 | . . . . . 1 Allies Corrupted . | . . . . . . Allies Melted . | . . . . . . Intel | -11 -10 -10 -10 -9 -8 ------- Run | Yrd Mat Min Exi Min Mat Robot Analysis Total 1 | . 1 . . . . Derelict Logs Recovered 2 | . . 1 . 1 . Drone Launches . | . . . . . . Drone Recoveries . | . . . . . . Exploration | -11 -10 -10 -10 -9 -8 ------------- Run | Yrd Mat Min Exi Min Mat Turns Passed 6321 | 199 1441 1827 648 1068 1138 Spaces Moved 3347 | 96 724 911 406 641 569 Core 28 | 28 . . . . . Treads 3319 | 68 724 911 406 641 569 Legs . | . . . . . . Wheels . | . . . . . . Hover . | . . . . . . Flight . | . . . . . . Fastest Speed 50 | 50 160 160 160 160 155 Average Speed 159 | 168 160 160 160 160 156 Slowest Speed 250 | 250 160 160 160 240 232 Overloaded Moves . | . . . . . . Propulsion Burnouts . | . . . . . . Robots Hopped . | . . . . . . Cave-ins Triggered . | . . . . . . Exploration Rate (%) 66 | 6 97 98 70 98 31 Regions Visited 5 Branch Regions 3 Pre-discovered Areas 2 | . . 1 1 . . Known Exits Taken . | . . . . . . Unknown Exits Taken 5 | 1 1 1 1 1 . Scrap Searched 4 | . . 2 . 2 . Spaces Dug 4 | . . . . . 4 Terrain Destroyed 4 | . . . . . 4 Melee 4 | . . . . . 4 Projectile . | . . . . . . AOE . | . . . . . . Terrain Rammed . | . . . . . . Walls Destroyed . | . . . . . . Machines Disabled . | . . . . . . Actions | -11 -10 -10 -10 -9 -8 --------- Run | Yrd Mat Min Exi Min Mat Total 4027 | 117 872 1231 405 665 737 Wait 412 | . 55 269 . 11 77 Move 3342 | 95 723 910 405 640 569 Hop . | . . . . . . Pick Up 49 | 8 14 8 . 1 18 Fast Attach 1 | . . 1 . . . Attach 14 | 6 1 1 . 1 5 Detach . | . . . . . . Swap 23 | . 4 7 . 1 11 Drop 15 | . 2 5 . 1 7 Fire 166 | 8 73 30 . 10 45 Melee 4 | . . . . . 4 Ram . | . . . . . . Kick . | . . . . . . Crush 1 | . . . . . 1 Escape Stasis . | . . . . . . Rewire . | . . . . . . Trap . | . . . . . . Miscellaneous . | . . . . . . Route ------- -11/Scrapyard -10/Materials (discovered 4 exits: [*Mat x3] / *Min) -10/Mines (discovered 3 exits: [*Mat x2] / *Exi) -10/Exiles (discovered 2 exits: [*Min x2]) -9/Mines (discovered 2 exits: *Mat x2) -8/Materials (discovered 1 exit: Sto) History --------- Turn | Location | Event 22 | -11/Scrapyard | Discovered new exit (range 16) 200 | -11/Scrapyard | Entered Materials 307 | -10/Materials | Build established: Mutant 608 | -10/Materials | Discovered new exit (range 11) 821 | -10/Materials | Discovered new exit (range 4) 909 | -10/Materials | Central database locked down 1040 | -10/Materials | Discovered new exit (range 5) 1213 | -10/Materials | Discovered new exit (range 16) 1641 | -10/Materials | Entered Mines 1712 | -10/Mines | Discovered new exit (range 6) 1782 | -10/Mines | Found a damaged Exp. Sensor Array with a note attached 1785 | -10/Mines | Found Prototype Device 1865 | -10/Mines | YI-UF0 nonchalantly dropped a Grenade Launcher on the ground 2009 | -10/Mines | Learned Materials stockpile data 2041 | -10/Mines | Found the Drone Emporium 2119 | -10/Mines | Assembled infested the area 2504 | -10/Mines | Discovered new exit (range 11) 2946 | -10/Mines | Learned location of Storage (-8) 2998 | -10/Mines | Discovered new exit (range 5) 3468 | -10/Mines | Entered Exiles 3494 | -10/Exiles | Discovered new exit (range 15) 3547 | -10/Exiles | Met 8R-AWN 3576 | -10/Exiles | Met EX-HEX 3651 | -10/Exiles | Met EX-DEC 3718 | -10/Exiles | Learned location of Zion (-7) 3769 | -10/Exiles | Met EX-BIN 3958 | -10/Exiles | Discovered new exit (range 14) 4116 | -10/Exiles | Entered Mines 4260 | -9/Mines | Found a hidden stash of uninstalled traps 4452 | -9/Mines | Discovered new exit (range 8) 4752 | -9/Mines | Discovered new exit (range 3) 5184 | -9/Mines | Entered Materials 5184 | -8/Materials | Accompanied by 2 allies 5184 | -8/Materials | Evolved 4 slots: Propulsion x1, Utility x3 5185 | -8/Materials | Identified exit to Storage 5189 | -8/Materials | Led the pair of lost Derelicts to an unsafe place 5756 | -8/Materials | Build established: Scavenger-Skirmisher 6322 | -8/Materials | Self-destructed Last Messages --------------- 05754_ Acquired 29 matter. 05757_ Acquired 34 matter. 05781_ Connecting with Terminal... 05804_ Acquired Axe. 05912_ Acquired 20 matter. 05921_ Acquired 15 matter. 05941_ Acquired 2 matter. 05946_ Acquired 20 matter. 05984_ Connecting with Terminal... 06164_ Triggered Shock Trap. 06164_ The floor emits a surge of raw power. 06164_ System corrupted (+1). 06241_ System corrupted: Heat flow error (+243). 06262_ System corrupted: Heat flow error (+132). 06270_ U-05 Engineer builds a Wall. 06288_ System corrupted: Energy discharge (-40). 06307_ Lgt. Treads destroyed. 06314_ Y-45 Defender destroyed. 06316_ Acquired 40 matter. 06321_ Acquired Lgt. Armor Plating. Map ----- +----------------------------------------------------+ | ?????????????????????????????????????????????????? | | ?????????????????????????????????????????????????? | | ?????????????????????????????????????????????????? | | ?????????????????????????????????????????????????? | | ?????????????????????????????????????????????????? | | ?????????????????????????????????????????????????? | | ?????????????????????????????????????????????????? | | ?????????????????????????????????????????????????o | | ?????????????????????????????????????????????????? | | ????????????????????????????????????????????=????? | | ?????????????????????????????????????????????????? | | ########?????????????????????????????????????????? | | ########?????????????????????????????????????????? | | # ##?????????????????????????????????????????? | | # " ##?????##########??????????????????????????? | | # ""#################??????????????????????????? | | #] ""########## ##??????????????????????????? | | # """# # ##??????????????????????????? | | # "" """" # """ ################????????????? | | + """#""" # """ ############### ??????????? | | # """#""" # """ # ?????????? | | # """# # """ + ?????????? | | + " #""" # """ # ![ u ?????????? | | # #""" # ###=#### ##???????????????? | | # = #""" # ###+#### ? ##???????????????? | | ####### # # [%@ # ? ##???????????????? | | ###########+#### = # * + ##???????????????? | | ######### ## # # ##???????????????? | | % ######## # ? ##???????????????? | | % ############### ? ##????o??????????? | | % u???????????????????? | | ######### #########????????????u?????????????? | | ########## ##########??????????????????????????? | | ########## ###?????????????????????????????????? | | # ##??????????????????????????????????? | | + ##??????????????????????????????????? | | # ##??????????????????????????????????? | | # ##??????????????????????????????????? | | ########## ##??????????????????????????????????? | | ## ##??????????????????????????????????? | | !! ## ##??????????????????????????????????? | | ![ ## ##??????????????????????????????????? | | ![ ## ##??????????????????????????????????? | | ## ##??????????????????????????????????? | | [## ##??????????????????????????????????? | | ##+#####"# ##??????????????????????????????????? | | ^ ##??????????????????????????????????? | | ^ ##??????????????????????????????????? | | ##??????????????????????????????????? | | ##/############??????????????????????????????????? | +----------------------------------------------------+ Best States ------------- Heat Dissipation 31 Energy Generation 14 Energy Capacity 250 Matter Stores 300 Matter Capacity 300 Sight Range 16 Robot Scan Range 15 Terrain Scan Density 10 Armor Coverage 150 Evasion (%) 40 Recoil Reduction 3 Item Schematics ----------------- None Robot Schematics ------------------ None Fabricated ------------ Nothing Alien Tech Used ----------------- None Achievements -------------- None Challenges ------------ None Game ------ Seed EtherialContainmentThrower Manual? 0 Play Time 00:58:16 Cumulative 100.6 hours Start 2024.06.23 @ 17:47:25 End 2024.06.29 @ 23:29:16 Sessions 7 Manual Loads 0 Difficulty Rogue Special Mode None Game No. 28 Rogue 28 Adventurer 0 Explorer 0 Win Type - Total 4 Types 1/0/1/2/0/0/0/0/0 Lore% 40 Gallery% 34 Achievement% 37 Wizard Run 0 Options --------- Layout 0 ASCII 0 Keyboard 0 Movement Mouse Keybinds 0 Fullscreen 1 Font 18/SmallcapsGlow Map View 76x50 Zoom Use 0% Tactical HUD 1 Map Filters NONE Filters NONE Steam 1 RUN: f90d5c5a-9716-42da-9d17-b6cd81fc7f56